bitfinex-derivatives/quotes_BTCF0:USTF0_20250602
["timestamp","ask_amount","ask_price","bid_price","bid_amount"]
[1748828113964,0.01957627,105490.0,105480.0,2.0092777]
[1748828114163,0.01945627,105490.0,105480.0,2.0092777]
[1748828114461,0.01957627,105490.0,105480.0,2.08342877]
[1748828114653,0.01957627,105490.0,105480.0,1.96831849]
[1748828114964,0.01957627,105490.0,105480.0,2.08577013]
[1748828115156,0.01957627,105490.0,105480.0,2.08342877]
[1748828115758,0.02357627,105490.0,105480.0,1.96831849]
[1748828116358,0.02657627,105490.0,105480.0,1.96831849]
[1748828116666,0.02657627,105490.0,105480.0,2.02732448]
[1748828116965,0.02657627,105490.0,105480.0,2.14243476]
[1748828117165,0.02557627,105490.0,105480.0,2.02712126]
[1748828117664,0.02557627,105490.0,105480.0,1.96687072]
[1748828117854,0.02557627,105490.0,105480.0,3.46687072]
[1748828118464,0.02557627,105490.0,105480.0,3.51498662]
[1748828119261,0.02557627,105490.0,105480.0,3.46687072]
[1748828119663,0.02557627,105490.0,105480.0,3.47161072]
[1748828120068,0.02557627,105490.0,105480.0,3.41260473]
[1748828121071,0.02557627,105490.0,105480.0,3.47153381]
[1748828121271,0.02557627,105490.0,105480.0,3.42853011]
[1748828121470,0.02557627,105490.0,105480.0,3.47216711]
[1748828121863,0.02157627,105490.0,105480.0,3.47216711]
[1748828122063,0.02145627,105490.0,105480.0,3.47516711]
[1748828122372,0.01957627,105490.0,105480.0,3.47816711]
[1748828122556,0.01957627,105490.0,105480.0,3.52623453]
[1748828122972,0.01957627,105490.0,105480.0,3.08535453]
[1748828123179,0.01957627,105490.0,105480.0,3.63027453]
[1748828124577,0.01957627,105490.0,105480.0,3.58220711]
[1748828124781,0.01957627,105490.0,105480.0,2.85532711]
[1748828125076,0.01957627,105490.0,105480.0,2.91649363]
[1748828125471,0.08217627,105490.0,105480.0,3.35709363]
[1748828125665,0.11307627,105490.0,105480.0,3.29814215]
[1748828125865,0.11307627,105490.0,105480.0,2.74253348]
[1748828126075,0.11307627,105490.0,105480.0,2.69515488]
[1748828126076,0.30669384,105490.0,105480.0,2.69515488]
[1748828126274,0.11719214,105490.0,105480.0,2.76210621]
[1748828128479,0.11719214,105490.0,105480.0,2.8057436]
[1748828128874,0.11719214,105490.0,105480.0,2.76213039]
[1748828132590,0.11719214,105490.0,105480.0,2.81021296]
[1748828132889,0.11719214,105490.0,105480.0,2.69520429]
[1748828133185,0.41101384,105490.0,105480.0,1.03943779]
[1748828133579,0.41101384,105490.0,105480.0,0.75516519]
[1748828133580,0.52602251,105490.0,105480.0,0.75516519]
[1748828133778,0.88682251,105490.0,105480.0,0.5402596]
[1748828135287,0.88257297,105490.0,105480.0,0.5402596]
[1748828135489,0.88257297,105490.0,105480.0,0.3402596]
[1748828136289,0.88682251,105490.0,105480.0,0.3402596]
[1748828139289,1.67218251,105490.0,105480.0,0.15074]
[1748828139590,1.78984201,105490.0,105480.0,0.00296417]
[1748828139994,1.88984201,105490.0,105480.0,0.00296417]
[1748828140289,1.88559247,105490.0,105480.0,0.00296417]
[1748828140692,1.88547247,105490.0,105480.0,0.00296417]
[1748828140889,1.88559247,105490.0,105480.0,0.00296417]
[1748828143284,1.7705838,105490.0,105480.0,0.00296417]
[1748828143495,1.09071247,105490.0,105480.0,0.19248377]
[1748828143698,1.7708238,105490.0,105480.0,0.19248377]
[1748828143896,1.34071247,105490.0,105480.0,0.19248377]
[1748828144196,1.51813297,105490.0,105480.0,0.19248377]
[1748828144387,1.51825297,105490.0,105480.0,0.19248377]
[1748828144584,0.9622843,105490.0,105480.0,0.19248377]
[1748828144793,1.3082443,105490.0,105480.0,0.19248377]
[1748828144993,1.3083643,105490.0,105480.0,0.19248377]
[1748828145199,1.3082443,105490.0,105480.0,0.19248377]
[1748828145400,1.3083643,105490.0,105480.0,0.19248377]
[1748828146898,1.42337297,105490.0,105480.0,0.19248377]
[1748828149386,1.42762251,105490.0,105480.0,0.19248377]
[1748828150098,1.31261384,105490.0,105480.0,0.19248377]
[1748828150302,1.42762251,105490.0,105480.0,0.19248377]
[1748828150602,1.42337297,105490.0,105480.0,0.19248377]
[1748828151789,1.42337297,105490.0,105480.0,0.00296417]
[1748828152192,1.42337297,105490.0,105480.0,0.19248377]
[1748828152996,1.42337297,105490.0,105480.0,0.00296417]
[1748828153593,1.42762251,105490.0,105480.0,0.00296417]
[1748828154300,1.52242251,105490.0,105480.0,0.00296417]
[1748828155100,1.40741384,105490.0,105480.0,0.00296417]
[1748828155301,1.52242251,105490.0,105480.0,0.00296417]
[1748828156605,0.1895195,105480.0,105470.0,0.1895364]
[1748828156806,0.72842817,105480.0,105470.0,0.1895364]
[1748828157705,0.82842817,105480.0,105470.0,0.1895364]
[1748828158607,0.83042817,105480.0,105470.0,0.1895364]
[1748828159201,0.46962817,105480.0,105470.0,0.1895364]
[1748828159401,0.83042817,105480.0,105470.0,0.1895364]
[1748828160606,0.1895375,105470.0,105460.0,0.44611415]
[1748828160793,0.81613408,105470.0,105460.0,0.51987811]
[1748828161000,1.17693408,105470.0,105460.0,0.51987811]
[1748828161500,1.22386655,105470.0,105460.0,0.5641939]
[1748828162807,1.22386655,105470.0,105460.0,0.5661939]
[1748828163107,1.23340614,105470.0,105460.0,0.47811415]
[1748828163302,1.23340614,105470.0,105460.0,0.56627779]
[1748828164508,1.23340614,105470.0,105460.0,0.5778013]
[1748828164709,1.23340614,105470.0,105460.0,0.5304129]
[1748828165507,1.23340614,105470.0,105460.0,0.2934865]
[1748828165809,1.23765568,105470.0,105460.0,0.26353965]
[1748828166007,1.26895568,105470.0,105460.0,0.26353965]
[1748828166212,1.26895568,105470.0,105460.0,0.45309505]
[1748828167013,1.26895568,105470.0,105460.0,0.26353965]
[1748828167407,1.26895568,105470.0,105460.0,0.36487826]
[1748828167613,1.26895568,105470.0,105460.0,0.45311737]
[1748828167811,1.38396435,105470.0,105460.0,0.26356197]
[1748828168114,1.38396435,105470.0,105460.0,0.45311737]
[1748828168315,1.38396435,105470.0,105460.0,0.26356197]
[1748828168507,1.38396435,105470.0,105460.0,0.14055074]
[1748828169005,0.26935568,105470.0,105460.0,0.40703224]
[1748828169209,0.26935558,105470.0,105460.0,0.83193224]
[1748828169415,0.26947558,105470.0,105460.0,0.78753012]
[1748828169614,0.26935558,105470.0,105460.0,0.67252145]
[1748828169804,0.77598425,105470.0,105460.0,0.31172145]
[1748828170009,0.77598425,105470.0,105460.0,0.37063336]
[1748828170010,0.83848425,105470.0,105460.0,0.37063336]
[1748828170302,0.83848425,105470.0,105460.0,0.4150426]
[1748828170812,0.72347558,105470.0,105460.0,0.4150426]
[1748828171507,0.72347558,105470.0,105460.0,0.35613069]
[1748828171705,0.72347558,105470.0,105460.0,0.26788378]
[1748828171920,0.72347558,105470.0,105460.0,0.3461348]
[1748828172215,0.72347558,105470.0,105460.0,0.39445238]
[1748828172216,1.26847558,105470.0,105460.0,0.39445238]
[1748828172809,1.26847558,105470.0,105460.0,0.25788378]
[1748828173109,1.26847558,105470.0,105460.0,0.3944466]
[1748828174513,1.26847558,105470.0,105460.0,0.35004012]
[1748828174816,1.26847558,105470.0,105460.0,0.3991866]
[1748828175017,1.26847558,105470.0,105460.0,0.4299866]
[1748828175416,0.46703558,105470.0,105460.0,0.4299866]
[1748828175620,0.36429599,105470.0,105460.0,0.58499527]
[1748828175920,0.80068645,105470.0,105460.0,0.58499527]
[1748828176122,0.80056645,105470.0,105460.0,0.58499527]
[1748828176417,0.80068645,105470.0,105460.0,0.58499527]
[1748828176718,0.80068645,105470.0,105460.0,0.58499316]
[1748828177315,0.83308645,105470.0,105460.0,0.46998449]
[1748828177619,0.39244645,105470.0,105460.0,0.46998449]
[1748828178623,0.42434645,105470.0,105460.0,0.46998449]
[1748828178822,0.42859599,105470.0,105460.0,0.46998449]
[1748828179021,0.54360466,105470.0,105460.0,0.46998449]
[1748828179228,0.57680466,105470.0,105460.0,0.42998449]
[1748828182224,0.93760466,105470.0,105460.0,0.42998449]
[1748828182409,0.93760466,105470.0,105460.0,0.39908449]
[1748828183324,0.93760466,105470.0,105460.0,0.33508449]
[1748828183515,1.026224,105470.0,105460.0,0.33508449]
[1748828183715,1.026224,105470.0,105460.0,0.10112378]
[1748828183916,0.93760466,105470.0,105460.0,0.24236493]
[1748828184210,1.05526416,105470.0,105460.0,0.05280953]
[1748828184525,1.05526416,105470.0,105460.0,0.00896838]
[1748828184723,1.05526416,105470.0,105460.0,0.05212856]
[1748828184918,0.79446416,105470.0,105460.0,0.05212856]
[1748828185120,1.15526416,105470.0,105460.0,0.05212856]
[1748828185515,1.2438388,105470.0,105460.0,0.05212856]
[1748828185823,1.24383891,105470.0,105460.0,0.05212856]
[1748828186215,0.88303891,105470.0,105460.0,0.05212856]
[1748828186420,1.12883024,105470.0,105460.0,0.24168396]
[1748828186621,1.68435891,105470.0,105460.0,0.24168396]
[1748828187324,1.68447891,105470.0,105460.0,0.19852378]
[1748828188423,1.56681941,105470.0,105460.0,0.00896838]
[1748828188623,1.68447891,105470.0,105460.0,0.00896838]
[1748828189920,1.56681941,105470.0,105460.0,0.00896838]
[1748828190121,1.68022937,105470.0,105460.0,0.00896838]
[1748828190322,1.56256987,105470.0,105460.0,0.00896838]
[1748828191218,1.93647462,105470.0,105460.0,0.00896838]
[1748828192311,1.68647462,105470.0,105460.0,0.00896838]
[1748828192516,1.15101462,105470.0,105460.0,0.19852378]
[1748828192820,1.59249462,105470.0,105460.0,0.00896838]
[1748828194624,1.15101462,105470.0,105460.0,0.00896838]
[1748828194822,1.59229462,105470.0,105460.0,0.00896838]
[1748828195018,1.04665462,105470.0,105460.0,0.19852368]
[1748828195226,1.23145462,105470.0,105460.0,0.19852368]
[1748828195524,1.59213462,105470.0,105460.0,0.00896838]
[1748828195924,1.59225462,105470.0,105460.0,0.00896838]
[1748828197218,1.59650416,105470.0,105460.0,0.00896838]
[1748828197421,1.15526416,105470.0,105460.0,0.00896838]
[1748828197626,1.59634416,105470.0,105460.0,0.00896838]
[1748828199129,2.67206416,105470.0,105460.0,0.00896838]
[1748828200126,2.66781462,105470.0,105460.0,0.00896838]
[1748828201127,2.67206416,105470.0,105460.0,0.00896838]
[1748828201518,2.31126416,105470.0,105460.0,0.00896838]
[1748828201722,3.03286416,105470.0,105460.0,0.00896838]
[1748828202227,3.02861462,105470.0,105460.0,0.00896838]
[1748828205329,3.03286416,105470.0,105460.0,0.00896838]
[1748828207234,3.02861462,105470.0,105460.0,0.00896838]
[1748828208238,3.03286416,105470.0,105460.0,0.00896838]
[1748828209337,3.02861462,105470.0,105460.0,0.00896838]
[1748828210332,3.03286416,105470.0,105460.0,0.00896838]
[1748828211436,3.02861462,105470.0,105460.0,0.00896838]
[1748828212338,0.1895729,105450.0,105440.0,0.12809949]
[1748828212543,2.06216354,105450.0,105440.0,0.07852859]
[1748828212844,2.27511932,105450.0,105440.0,0.03538981]
[1748828213646,2.37511932,105450.0,105440.0,0.03938981]
[1748828214338,2.37511932,105450.0,105440.0,0.03538981]
[1748828214339,2.37711932,105450.0,105440.0,0.03538981]
[1748828218945,1.65551932,105450.0,105440.0,0.03538981]
[1748828219240,2.37711932,105450.0,105440.0,0.03538981]
[1748828220742,2.26227065,105450.0,105440.0,0.03538981]
[1748828220945,2.26227065,105450.0,105440.0,0.12818981]
[1748828221348,2.37727932,105450.0,105440.0,0.03538981]
[1748828230745,2.37727932,105450.0,105440.0,1e-08]
[1748828230952,2.25912354,105450.0,105440.0,1e-08]
[1748828231253,2.40619792,105450.0,105440.0,1e-08]
[1748828231543,2.78619792,105450.0,105440.0,1e-08]
[1748828232339,2.34527792,105450.0,105440.0,1e-08]
[1748828232656,2.78607792,105450.0,105440.0,1e-08]
[1748828234949,2.9041468,105450.0,105440.0,1e-08]
[1748828235154,1.98185508,105450.0,105440.0,1e-08]
[1748828235355,2.64210375,105450.0,105440.0,1e-08]
[1748828235555,2.09686375,105450.0,105440.0,1e-08]
[1748828235749,2.64222375,105450.0,105440.0,0.09460001]
[1748828237955,2.64222375,105450.0,105440.0,0.28419111]
[1748828237956,2.08637508,105450.0,105440.0,0.28419111]
[1748828238159,2.64210375,105450.0,105440.0,0.09460001]
[1748828238360,2.64222375,105450.0,105440.0,0.09460001]
[1748828241656,2.75723242,105450.0,105440.0,1e-08]
[1748828242051,2.9043068,105450.0,105440.0,1e-08]
[1748828242254,2.90445719,105450.0,105440.0,1e-08]
[1748828242453,2.78623792,105450.0,105440.0,1e-08]
[1748828250461,2.24099792,105450.0,105440.0,1e-08]
[1748828250665,2.78615792,105450.0,105440.0,1e-08]
[1748828252271,2.78648322,105450.0,105440.0,1e-08]
[1748828253066,2.34568322,105450.0,105440.0,1e-08]
[1748828253266,2.78648322,105450.0,105440.0,1e-08]
[1748828259973,2.06488322,105450.0,105440.0,1e-08]
[1748828260179,2.78648322,105450.0,105440.0,1e-08]
[1748828262483,2.63940884,105450.0,105440.0,1e-08]
[1748828262975,2.78648322,105450.0,105440.0,1e-08]
[1748828263781,2.52423752,105450.0,105440.0,1e-08]
[1748828264078,2.6713119,105450.0,105440.0,0.06460001]
[1748828265378,2.67129177,105450.0,105440.0,0.06460001]
[1748828266778,3.74725177,105450.0,105440.0,0.06460001]
[1748828266979,3.30645177,105450.0,105440.0,0.06460001]
[1748828267179,3.63194058,105450.0,105440.0,0.06460001]
[1748828267382,3.74709177,105450.0,105440.0,0.09480001]
[1748828267582,3.74721177,105450.0,105440.0,0.09480001]
[1748828273777,3.63206058,105450.0,105440.0,0.09480001]
[1748828274080,3.74721177,105450.0,105440.0,0.09480001]
[1748828274486,3.80626655,105450.0,105440.0,0.09480001]
[1748828278281,3.80626655,105450.0,105440.0,0.0948]
[1748828278481,0.189591,105440.0,105430.0,0.00222897]
[1748828278693,1.03685528,105440.0,105430.0,0.06512897]
[1748828278987,1.39765528,105440.0,105430.0,0.06512897]
[1748828279678,1.49765528,105440.0,105430.0,0.06512897]
[1748828279873,1.38250409,105440.0,105430.0,0.06512897]
[1748828280278,1.02170409,105440.0,105430.0,0.25573797]
[1748828280586,1.66754409,105440.0,105430.0,0.06612897]
[1748828280886,1.19674409,105440.0,105430.0,0.27573797]
[1748828281189,1.19674409,105440.0,105430.0,0.08612897]
[1748828281574,1.19674409,105440.0,105430.0,0.11612897]
[1748828281778,0.5747729,105440.0,105430.0,0.42088916]
[1748828281985,1.13064409,105440.0,105430.0,0.42088916]
[1748828282180,1.09774409,105440.0,105430.0,0.42088916]
[1748828282778,1.09786409,105440.0,105430.0,0.42088916]
[1748828283696,0.9827129,105440.0,105430.0,0.42088916]
[1748828283884,1.09786409,105440.0,105430.0,0.42088916]
[1748828284498,1.0682536,105440.0,105430.0,0.51203512]
[1748828284987,1.0682536,105440.0,105430.0,0.39688393]
[1748828285388,0.95310241,105440.0,105430.0,0.39688393]
[1748828285598,1.0682536,105440.0,105430.0,0.39688393]
[1748828286796,1.0682536,105440.0,105430.0,0.51203512]
[1748828287503,1.0682536,105440.0,105430.0,0.46924831]
[1748828287801,0.95310241,105440.0,105430.0,0.51203213]
[1748828287985,1.0682536,105440.0,105430.0,0.51203213]
[1748828288296,0.95310241,105440.0,105430.0,0.51203213]
[1748828288596,1.0682536,105440.0,105430.0,0.51203213]
[1748828288800,1.1000536,105440.0,105430.0,0.51203213]
[1748828289285,1.1000536,105440.0,105430.0,0.39688094]
[1748828289492,1.1654536,105440.0,105430.0,0.39688094]
[1748828291299,1.25420831,105440.0,105430.0,0.34852179]
[1748828291489,1.1654536,105440.0,105430.0,0.39688094]
[1748828291689,1.1654536,105440.0,105430.0,0.34852179]
[1748828291990,1.1654536,105440.0,105430.0,0.39688094]
[1748828293199,1.1654536,105440.0,105430.0,0.46367298]
[1748828293394,1.1654536,105440.0,105430.0,0.34852179]
[1748828293796,1.1654536,105440.0,105430.0,0.46367298]
[1748828294393,1.13585862,105440.0,105430.0,0.46367298]
[1748828294696,1.13585862,105440.0,105430.0,0.51203213]
[1748828294901,1.25421003,105440.0,105430.0,0.51203213]
[1748828296303,1.25421003,105440.0,105430.0,0.46924831]
[1748828296601,1.25421003,105440.0,105430.0,0.51203206]
[1748828297803,1.25421003,105440.0,105430.0,0.39688087]
[1748828299298,1.25421003,105440.0,105430.0,0.39688055]
[1748828300700,1.25421003,105440.0,105430.0,0.39688038]
[1748828300896,1.13905884,105440.0,105430.0,0.39688038]
[1748828301093,1.25421003,105440.0,105430.0,0.39688038]
[1748828303205,0.69833884,105440.0,105430.0,0.39688038]
[1748828303405,1.25405003,105440.0,105430.0,0.51203157]
[1748828303703,1.25405003,105440.0,105430.0,0.37688038]
[1748828303902,1.25405003,105440.0,105430.0,0.41688038]
[1748828306103,1.25393003,105440.0,105430.0,0.41688038]
[1748828306303,1.25405003,105440.0,105430.0,0.41688038]
[1748828307399,1.25405003,105440.0,105430.0,0.53203157]
[1748828308207,1.25405003,105440.0,105430.0,0.48924762]
[1748828308406,1.25405003,105440.0,105430.0,0.53204466]
[1748828309207,0.59401884,105440.0,105430.0,0.53204466]
[1748828309507,0.59401884,105440.0,105430.0,1.14414283]
[1748828309508,0.29311643,105440.0,105430.0,1.14414283]
[1748828309709,0.20424,105440.0,105430.0,1.44274176]
[1748828309913,0.20436,105440.0,105430.0,1.32759057]
[1748828310109,0.20424,105440.0,105430.0,1.32759057]
[1748828310314,0.10424,105440.0,105430.0,1.32759057]
[1748828310516,0.10436,105440.0,105430.0,1.32759057]
[1748828311309,0.10436,105440.0,105430.0,2.82759057]
[1748828313619,0.10436,105440.0,105430.0,2.82755756]
[1748828314113,0.14071712,105450.0,105440.0,0.1895911]
[1748828314417,0.15089369,105460.0,105450.0,0.1895731]
[1748828314418,0.32644328,105460.0,105450.0,0.1895731]
[1748828314624,0.32644328,105460.0,105450.0,1.240602]
[1748828316119,0.44359447,105460.0,105450.0,1.681042]
[1748828316420,0.44359447,105460.0,105450.0,1.240602]
[1748828316613,0.44359447,105460.0,105450.0,1.0771721]
[1748828316814,0.50779447,105460.0,105450.0,0.6863721]
[1748828317617,0.50579447,105460.0,105450.0,0.6893721]
[1748828317824,0.50579447,105460.0,105450.0,0.76175935]
[1748828318024,0.40155447,105460.0,105450.0,0.80446627]
[1748828318225,0.50579447,105460.0,105450.0,0.80446627]
[1748828318620,0.50579447,105460.0,105450.0,0.83686627]
[1748828319026,0.40155447,105460.0,105450.0,0.83686627]
[1748828319227,0.39064328,105460.0,105450.0,0.72171508]
[1748828321028,0.39064328,105460.0,105450.0,0.72645508]
[1748828322220,0.39064328,105460.0,105450.0,0.68374816]
[1748828322523,0.39064328,105460.0,105450.0,0.72643025]
[1748828323931,0.39064328,105460.0,105450.0,1.08723025]
[1748828324532,0.47913828,105460.0,105450.0,1.04454816]
[1748828326336,0.47913828,105460.0,105450.0,0.68374816]
[1748828326537,0.47913828,105460.0,105450.0,0.68174816]
[1748828327630,0.47913828,105460.0,105450.0,0.67974816]
[1748828328432,0.39064328,105460.0,105450.0,0.67974816]
[1748828328625,0.47911856,105460.0,105450.0,0.67974816]
[1748828329032,0.4833681,105460.0,105450.0,0.67974816]
[1748828330139,0.47911856,105460.0,105450.0,0.67974816]
[1748828333440,0.44711856,105460.0,105450.0,1.15565116]
[1748828333642,0.44723856,105460.0,105450.0,1.15565116]
[1748828333834,0.44723856,105460.0,105450.0,2.65565116]
[1748828334835,0.35876328,105460.0,105450.0,2.69834968]
[1748828335437,0.35876328,105460.0,105450.0,2.65565116]
[1748828335743,0.35876328,105460.0,105450.0,2.69835771]
[1748828335941,0.39106328,105460.0,105450.0,1.19835771]
[1748828336437,0.39106328,105460.0,105450.0,1.09905033]
[1748828336734,0.39106328,105460.0,105450.0,1.05085471]
[1748828337042,0.39106328,105460.0,105450.0,0.40555471]
[1748828337435,0.39106328,105460.0,105450.0,0.45375033]
[1748828337936,0.50616628,105460.0,105450.0,0.45375033]
[1748828338841,0.50616628,105460.0,105450.0,0.41104378]
[1748828339041,0.50616628,105460.0,105450.0,0.45378951]
[1748828339338,0.50618199,105460.0,105450.0,0.61327962]
[1748828339543,0.59465727,105460.0,105450.0,0.61327962]
[1748828339939,0.59465727,105460.0,105450.0,0.56890822]
[1748828340136,0.59465727,105460.0,105450.0,0.61332478]
[1748828340642,0.95545727,105460.0,105450.0,0.61332478]
[1748828340837,1.07057598,105460.0,105450.0,0.30863297]
[1748828341044,1.85577469,105460.0,105450.0,0.00574]
[1748828341346,1.98951599,105460.0,105450.0,0.00574]
[1748828341533,0.1895731,105450.0,105440.0,0.04819562]
[1748828341733,0.1895731,105450.0,105430.0,0.34466914]
[1748828341734,0.1895911,105440.0,105430.0,0.34466914]
[1748828342045,1.38868852,105440.0,105430.0,0.43027822]
[1748828342236,1.38868852,105440.0,105430.0,0.09319981]
[1748828342435,1.49733589,105440.0,105430.0,0.09319981]
[1748828342639,1.49733589,105440.0,105430.0,0.04498461]
[1748828342843,1.47733589,105440.0,105430.0,0.04498461]
[1748828343044,1.35653589,105440.0,105430.0,0.04498461]
[1748828343243,1.6022828,105440.0,105430.0,0.04498461]
[1748828343642,1.2414828,105440.0,105430.0,0.04498461]
[1748828343948,1.2414828,105440.0,105430.0,0.23459371]
[1748828344340,1.0014828,105440.0,105430.0,0.23459371]
[1748828344640,1.0014828,105440.0,105430.0,0.23559371]
[1748828344641,0.91283543,105440.0,105430.0,0.23559371]
[1748828344838,0.94473543,105440.0,105430.0,0.23559371]
[1748828345238,1.30565543,105440.0,105430.0,0.23559371]
[1748828345442,0.94485543,105440.0,105430.0,0.23559371]
[1748828345946,0.94485543,105440.0,105430.0,0.24559371]
[1748828346148,0.94485543,105440.0,105430.0,0.27699371]
[1748828346347,0.94473543,105440.0,105430.0,0.27699371]
[1748828346543,1.30565543,105440.0,105430.0,0.27699371]
[1748828346738,0.94485543,105440.0,105430.0,0.27699371]
[1748828348141,0.94485543,105440.0,105430.0,0.27694113]
[1748828348339,0.8296311,105440.0,105430.0,0.27694113]
[1748828348640,0.8296311,105440.0,105430.0,0.52714113]
[1748828350153,0.3894311,105440.0,105430.0,0.52714113]
[1748828350351,0.8296311,105440.0,105430.0,0.55784113]
[1748828350744,0.8295111,105440.0,105430.0,0.55784113]
[1748828350945,0.8296311,105440.0,105430.0,0.55784113]
[1748828352057,0.2853111,105440.0,105430.0,0.55784113]
[1748828352355,0.2853111,105440.0,105430.0,0.67302546]
[1748828352356,0.7986311,105440.0,105430.0,0.67302546]
[1748828352553,0.7986311,105440.0,105430.0,0.6303224]
[1748828352755,0.7986311,105440.0,105430.0,0.67300748]
[1748828353349,0.8293311,105440.0,105430.0,0.67300748]
[1748828353549,1.0693311,105440.0,105430.0,0.32782315]
[1748828353753,0.94451543,105440.0,105430.0,0.32782315]
[1748828353959,0.96451543,105440.0,105430.0,0.32782315]
[1748828354257,0.96451543,105440.0,105430.0,0.37601877]
[1748828354854,0.96451543,105440.0,105430.0,0.32782315]
[1748828355046,0.8493311,105440.0,105430.0,0.32782315]
[1748828357064,0.8493311,105440.0,105430.0,0.32782678]
[1748828359561,0.3050111,105440.0,105430.0,0.32782678]
[1748828359765,0.8492911,105440.0,105430.0,0.32782678]
[1748828359962,0.21954,105440.0,105430.0,0.32782678]
[1748828360162,0.4091311,105440.0,105430.0,0.44301111]
[1748828361366,0.4091311,105440.0,105430.0,0.48735573]
[1748828361867,0.4091311,105440.0,105430.0,0.3721714]
[1748828362362,0.4091311,105440.0,105430.0,0.42036702]
[1748828364868,0.4091311,105440.0,105430.0,0.32783676]
[1748828365768,0.4091311,105440.0,105430.0,0.32786699]
[1748828366567,0.4091311,105440.0,105430.0,0.36786699]
[1748828367970,0.4091311,105440.0,105430.0,0.53786699]
[1748828368165,0.49777847,105440.0,105430.0,0.53786699]
[1748828368369,0.49777847,105440.0,105430.0,0.58606261]
[1748828369270,0.49777847,105440.0,105430.0,0.63042869]
[1748828369665,0.49777847,105440.0,105430.0,0.09032397]
[1748828369666,1.2837628,105440.0,105430.0,0.09032397]
[1748828369868,1.2837628,105440.0,105430.0,0.27993297]
[1748828370067,0.80777847,105440.0,105430.0,0.19283797]
[1748828370368,0.9229628,105440.0,105430.0,0.23562928]
[1748828370778,1.28801234,105440.0,105430.0,0.23562928]
[1748828371071,0.92721234,105440.0,105430.0,0.23562928]
[1748828371267,1.28801234,105440.0,105430.0,0.23562928]
[1748828371474,0.92721234,105440.0,105430.0,0.23562928]
[1748828371674,1.28801234,105440.0,105430.0,0.23562928]
[1748828371973,0.96801234,105440.0,105430.0,0.23562928]
[1748828372174,0.95801234,105440.0,105430.0,0.23562928]
[1748828372474,0.59721234,105440.0,105430.0,0.23562928]
[1748828373771,0.5929628,105440.0,105430.0,0.23562928]
[1748828374260,0.5929628,105440.0,105430.0,0.38562928]
[1748828374462,0.5929628,105440.0,105430.0,0.38563155]
[1748828374872,0.9537628,105440.0,105430.0,0.47826019]
[1748828375662,0.5929628,105440.0,105430.0,0.47826019]
[1748828376869,1.3337628,105440.0,105430.0,0.28006457]
[1748828377068,1.3337628,105440.0,105430.0,0.23563155]
[1748828377479,1.4337628,105440.0,105430.0,0.23563155]
[1748828377974,1.0729628,105440.0,105430.0,0.23563155]
[1748828378175,1.0729628,105440.0,105430.0,0.28006457]
[1748828378380,1.0729628,105440.0,105430.0,0.23563155]
[1748828378671,1.4337628,105440.0,105430.0,0.23563155]
[1748828378878,1.4337628,105440.0,105430.0,0.23562989]
[1748828379076,1.2137628,105440.0,105430.0,0.23562989]
[1748828379271,0.8529628,105440.0,105430.0,0.23562989]
[1748828379673,1.2137628,105440.0,105430.0,0.23562989]
[1748828380583,0.8529628,105440.0,105430.0,0.23562989]
[1748828381273,1.2137628,105440.0,105430.0,0.23562989]
[1748828381474,1.2136428,105440.0,105430.0,0.23562989]
[1748828382180,0.8528428,105440.0,105430.0,0.23562989]
[1748828382371,0.8528428,105440.0,105430.0,0.28382551]
[1748828382372,1.2136428,105440.0,105430.0,0.28382551]
[1748828382571,0.8528428,105440.0,105430.0,0.28382551]
[1748828383177,0.8528428,105440.0,105430.0,0.28381707]
[1748828384581,1.1328428,105440.0,105430.0,0.28381707]
[1748828384783,1.1329628,105440.0,105430.0,0.28381707]
[1748828387680,1.1329628,105440.0,105430.0,0.28381543]
[1748828389482,1.4529628,105440.0,105430.0,0.28381543]
[1748828390078,1.4529628,105440.0,105430.0,0.24561981]
[1748828393388,1.56812313,105440.0,105430.0,0.24561981]
[1748828394492,1.56812313,105440.0,105430.0,0.10043169]
[1748828394692,1.56812313,105440.0,105430.0,0.33823611]
[1748828394886,1.56812313,105440.0,105430.0,0.29004049]
[1748828395086,1.57237267,105440.0,105430.0,0.29004049]
[1748828395395,1.57237267,105440.0,105430.0,0.33823611]
[1748828395684,1.57237267,105440.0,105430.0,0.29004049]
[1748828396284,1.57237267,105440.0,105430.0,0.10043169]
[1748828396486,1.57237267,105440.0,105430.0,0.29006707]
[1748828396793,1.57237267,105440.0,105430.0,0.10045817]
[1748828397490,1.57237267,105440.0,105430.0,0.29006697]
[1748828397686,1.57237267,105440.0,105430.0,0.33826259]
[1748828397892,1.57237267,105440.0,105430.0,0.14865379]
[1748828398294,1.93317267,105440.0,105430.0,0.14865379]
[1748828398690,1.93317267,105440.0,105430.0,0.28006697]
[1748828398992,1.93317267,105440.0,105430.0,0.00322897]
[1748828399296,1.57237267,105440.0,105430.0,0.09047806]
[1748828399591,1.57237267,105440.0,105430.0,0.32828258]
[1748828400689,1.57237267,105440.0,105430.0,0.32829401]
[1748828402998,1.45720034,105440.0,105430.0,0.35929401]
[1748828403198,1.4529508,105440.0,105430.0,0.42189401]
[1748828403597,1.33777847,105440.0,105430.0,0.42189401]
[1748828403798,1.4529508,105440.0,105430.0,0.42189953]
[1748828404095,1.0129508,105440.0,105430.0,0.42189953]
[1748828404296,0.9088308,105440.0,105430.0,0.42189953]
[1748828404492,1.30741847,105440.0,105430.0,0.42189953]
[1748828404692,1.4225908,105440.0,105430.0,0.42189953]
[1748828405092,1.53776313,105440.0,105430.0,0.42189953]
[1748828405297,1.30741847,105440.0,105430.0,0.42189953]
[1748828405599,1.53776313,105440.0,105430.0,0.42189953]
[1748828406998,1.53776313,105440.0,105430.0,0.39089953]
[1748828407488,1.09792313,105440.0,105430.0,0.39089953]
[1748828407690,1.4225908,105440.0,105430.0,0.42209953]
[1748828408189,1.4225908,105440.0,105430.0,0.4221175]
[1748828408892,1.4225908,105440.0,105430.0,0.4421175]
[1748828410294,1.4225908,105440.0,105430.0,0.44211784]
[1748828410595,1.42274043,105440.0,105430.0,0.44211802]
[1748828411100,0.87898043,105440.0,105430.0,0.44211802]
[1748828411301,1.53787276,105440.0,105430.0,0.44211802]
[1748828411603,1.53787276,105440.0,105430.0,0.41091802]
[1748828412492,1.53787276,105440.0,105430.0,0.32363349]
[1748828412692,1.53787276,105440.0,105430.0,0.41092126]
[1748828413402,1.42270043,105440.0,105430.0,0.41092126]
[1748828413787,1.53787276,105440.0,105430.0,0.41092126]
[1748828413993,1.09807276,105440.0,105430.0,0.41092126]
[1748828414201,1.53783276,105440.0,105430.0,0.41092126]
[1748828414904,1.53783276,105440.0,105430.0,0.36272564]
[1748828415087,1.56723251,105440.0,105430.0,0.31826414]
[1748828415287,1.45206018,105440.0,105430.0,0.31826414]
[1748828416002,1.45206018,105440.0,105430.0,0.31826393]
[1748828416297,1.45194018,105440.0,105430.0,0.31826393]
[1748828416893,1.45194018,105440.0,105430.0,0.62826376]
[1748828417196,1.45194018,105440.0,105430.0,0.66006376]
[1748828418689,1.45194018,105440.0,105430.0,0.43865486]
[1748828418897,1.33374343,105440.0,105430.0,0.62826366]
[1748828420503,1.33374343,105440.0,105430.0,0.39826366]
[1748828424112,1.33374343,105440.0,105430.0,0.20865486]